bitfinex-derivatives/quotes_SOLF0:USTF0_20251020
["timestamp","ask_amount","ask_price","bid_price","bid_amount"]
[1760938641585,2.82,192.59,192.52,4.6734]
[1760938641786,2.82,192.58,192.5,2.16104222]
[1760938643092,2.82,192.58,192.51,4.6737]
[1760938643493,2.82,192.58,192.5,2.16104222]
[1760938643888,2.82,192.58,192.5,6.83474222]
[1760938646492,2.82,192.56,192.5,4.6737]
[1760938649400,2.16104222,192.55,192.49,2.6]
[1760938649596,2.16104222,192.53,192.47,4.6745]
[1760938650593,2.82,192.54,192.4,31.2]
[1760938650594,4.98104222,192.54,192.48,7.2742]
[1760938652694,2.82,192.54,192.48,7.2742]
[1760938652893,4.98104222,192.54,192.48,7.2742]
[1760938654799,2.82,192.54,192.48,7.2742]
[1760938655094,2.82,192.49,192.4,2.6]
[1760938655296,4.83616784,192.56,192.4,2.6]
[1760938655297,4.98104222,192.47,192.4,2.6]
[1760938655500,2.16104222,192.44,192.38,4.6768]
[1760938655895,2.16104222,192.42,192.38,7.2768]
[1760938656095,2.16104222,192.42,192.38,4.6768]
[1760938656297,2.16104222,192.42,192.39,2.6]
[1760938656696,2.16104222,192.42,192.4,2.6]
[1760938658903,2.16104222,192.44,192.4,2.6]
[1760938659303,4.98104222,192.44,192.4,2.6]
[1760938660504,4.98104222,192.44,192.4,7.2763]
[1760938661399,2.16104222,192.44,192.4,4.6763]
[1760938661597,4.6742,192.49,192.42,2.6]
[1760938661598,2.16104222,192.46,192.42,2.6]
[1760938661802,4.98104222,192.46,192.4,7.2763]
[1760938663495,4.98104222,192.46,192.4,2.6]
[1760938665904,4.98104222,192.46,192.42,2.6]
[1760938666105,2.82,192.46,192.43,2.6]
[1760938666504,2.82,192.49,192.42,2.6]
[1760938667800,2.84,192.47,192.41,4.6761]
[1760938668208,2.84,192.47,192.41,7.4661]
[1760938673207,2.84,192.47,192.43,4.6756]
[1760938673408,2.84,192.47,192.44,2.79]
[1760938674218,2.84,192.48,192.44,2.79]
[1760938675315,2.84,192.48,192.45,2.79]
[1760938675516,3.97009272,192.49,192.45,2.79]
[1760938675715,2.84,192.48,192.45,2.79]
[1760938675915,2.84,192.48,192.43,7.4656]
[1760938676214,2.84,192.48,192.44,2.79]
[1760938678617,3.97009272,192.5,192.45,2.79]
[1760938678909,2.84,192.52,192.45,2.79]
[1760938679505,2.84,192.5,192.42,4.6756]
[1760938679707,2.84,192.5,192.42,2.79]
[1760938680022,2.84,192.5,192.43,2.79]
[1760938680912,6.81037404,192.5,192.43,2.79]
[1760938681413,2.84,192.48,192.42,4.6758]
[1760938682917,6.2140689,192.52,192.44,2.79]
[1760938683112,3.97161476,192.51,192.44,2.79]
[1760938683318,6.2140689,192.52,192.44,2.79]
[1760938683521,3.9722301,192.51,192.44,2.79]
[1760938683719,6.2140689,192.55,192.44,2.79]
[1760938683919,3.97214558,192.54,192.44,2.79]
[1760938684121,2.84,192.55,192.48,7.4642]
[1760938684417,2.84,192.55,192.48,2.79]
[1760938685420,49.7740689,192.58,192.5,7.4639]
[1760938685718,3.97298459,192.57,192.5,7.4639]
[1760938685919,3.97298459,192.56,192.5,7.4639]
[1760938686112,49.7740689,192.58,192.51,2.79]
[1760938686113,3.97298459,192.55,192.51,2.79]
[1760938686318,6.2140689,192.58,192.51,2.79]
[1760938686619,3.97365067,192.57,192.51,2.79]
[1760938686820,6.81365067,192.56,192.51,2.79]
[1760938687019,2.84,192.56,192.51,2.79]
[1760938687420,2.84,192.56,192.5,7.4639]
[1760938688915,2.84,192.56,192.52,4.6733]
[1760938689115,3.3740689,192.58,192.54,2.79]
[1760938689116,6.2140689,192.58,192.54,2.79]
[1760938689316,6.81393301,192.57,192.52,4.6733]
[1760938689515,3.97393301,192.56,192.54,2.79]
[1760938689717,6.2140689,192.58,192.54,2.79]
[1760938689915,3.97386008,192.57,192.54,2.79]
[1760938690120,7.67616784,192.62,192.55,2.79]
[1760938690322,3.97361156,192.61,192.55,2.79]
[1760938690520,3.97361156,192.6,192.47,2.79]
[1760938690823,2.84,192.62,192.47,2.79]
[1760938691020,3.97244338,192.61,192.47,2.79]
[1760938691225,3.97244338,192.6,192.47,2.79]
[1760938691519,2.84,192.62,192.47,2.79]
[1760938691721,3.97152041,192.61,192.55,4.6727]
[1760938691914,6.81152041,192.6,192.55,7.4627]
[1760938692114,2.84,192.6,192.56,2.79]
[1760938692325,7.36400163,192.64,192.57,2.79]
[1760938692526,3.97030055,192.63,192.57,2.79]
[1760938692722,3.97030055,192.63,192.49,3.3740689]
[1760938692723,3.97030055,192.62,192.5,2.6]
[1760938692927,2.62,192.64,192.5,2.6]
[1760938693127,3.97004481,192.63,192.5,2.6]
[1760938693327,3.97004481,192.62,192.5,2.6]
[1760938693626,3.96840915,192.63,192.53,2.6]
[1760938693920,3.96840915,192.63,192.59,2.6]
[1760938694120,6.58840915,192.64,192.59,2.6]
[1760938694325,2.62,192.64,192.59,2.6]
[1760938694519,2.62,192.64,192.56,4.6724]
[1760938694726,2.62,192.64,192.53,2.6]
[1760938696126,2.62,192.64,192.58,4.6718]
[1760938696326,5.9940689,192.64,192.58,4.6718]
[1760938697831,3.3740689,192.61,192.56,4.6724]
[1760938698032,2.63,192.57,192.45,2.75]
[1760938698227,2.63,192.54,192.45,2.75]
[1760938698427,6.0040689,192.59,192.44,2.75]
[1760938698729,6.0040689,192.59,192.47,2.75]
[1760938698925,6.0040689,192.59,192.55,2.75]
[1760938699127,3.3740689,192.59,192.47,2.75]
[1760938699330,3.3740689,192.59,192.43,9.3511]
[1760938699331,3.3740689,192.62,192.5,2.75]
[1760938700131,3.3740689,192.62,192.58,7.422]
[1760938700332,6.0040689,192.62,192.58,7.422]
[1760938700935,2.63,192.61,192.58,4.672]
[1760938701336,3.3740689,192.62,192.58,7.422]
[1760938701635,6.0040689,192.62,192.58,7.422]
[1760938701837,6.0040689,192.62,192.55,4.6725]
[1760938703333,6.0040689,192.62,192.56,7.4223]
[1760938707243,6.0040689,192.62,192.5,2.75]
[1760938707244,3.3740689,192.62,192.5,2.75]
[1760938708338,3.3740689,192.62,192.57,4.672]
[1760938708547,3.3740689,192.62,192.58,2.75]
[1760938708743,6.0040689,192.62,192.58,2.75]
[1760938709339,3.3740689,192.65,192.59,2.75]
[1760938709544,6.0040689,192.65,192.5,9.3478]
[1760938709736,6.0040689,192.62,192.51,2.75]
[1760938710043,6.0040689,192.62,192.59,4.6717]
[1760938710643,6.0040689,192.65,192.59,7.4217]
[1760938714455,6.0040689,192.65,192.6,7.4213]
[1760938714654,2.63,192.64,192.6,7.4213]
[1760938717452,2.63,192.64,192.61,2.75]
[1760938720154,2.63,192.66,192.6,4.6713]
[1760938721554,6.0040689,192.66,192.6,4.6713]
[1760938724952,3.95779264,192.65,192.6,4.6713]
[1760938725150,2.63,192.64,192.6,7.4213]
[1760938727057,2.87,192.65,192.6,4.6713]
[1760938727258,2.87,192.63,192.58,4.6719]
[1760938727467,2.87,192.64,192.58,4.6719]
[1760938727658,2.87,192.64,192.55,4.6725]
[1760938727659,2.87,192.62,192.55,4.6725]
[1760938727861,6.2440689,192.6,192.53,2.69]
[1760938728955,6.2440689,192.6,192.54,4.6728]
[1760938729152,6.2440689,192.63,192.53,2.69]
[1760938729357,3.96728397,192.62,192.53,2.69]
[1760938729655,3.96728397,192.61,192.53,2.69]
[1760938729855,3.96728397,192.6,192.53,2.69]
[1760938730061,6.2440689,192.63,192.56,4.6722]
[1760938730357,8.60969145,192.62,192.56,4.6722]
[1760938730562,2.87,192.59,192.56,4.6722]
[1760938731269,3.96935886,192.58,192.54,7.3629]
[1760938731556,2.87,192.58,192.54,7.3629]
[1760938731757,3.96946764,192.57,192.5,2.69]
[1760938731961,3.3740689,192.58,192.5,2.69]
[1760938732163,3.96946952,192.57,192.5,2.69]
[1760938732358,3.3740689,192.58,192.5,2.69]
[1760938732554,3.97019756,192.57,192.5,2.69]
[1760938732757,3.3740689,192.58,192.5,2.69]
[1760938732958,3.97019756,192.57,192.51,4.6735]
[1760938733162,3.3740689,192.58,192.45,30.34]
[1760938733163,3.3740689,192.55,192.47,2.69]
[1760938733363,3.3740689,192.58,192.47,2.69]
[1760938733559,3.97081139,192.57,192.5,4.6737]
[1760938733764,3.3740689,192.58,192.5,7.3637]
[1760938734064,3.9707212,192.57,192.5,2.69]
[1760938734265,3.97119909,192.56,192.5,2.69]
[1760938734467,6.2440689,192.58,192.51,4.6734]
[1760938734764,2.87,192.56,192.46,2.69]
[1760938734964,7.34530957,192.55,192.46,2.69]
[1760938735164,3.3740689,192.55,192.46,2.69]
[1760938736084,2.87,192.56,192.48,2.69]
[1760938736260,3.97061357,192.55,192.48,2.69]
[1760938736457,2.87,192.56,192.48,2.69]
[1760938736661,2.15835005,192.52,192.48,2.69]
[1760938736861,2.15835005,192.52,192.43,2.69]
[1760938737065,5.02835005,192.54,192.45,2.69]
[1760938738066,5.02835005,192.54,192.5,2.69]
[1760938738964,4.6722,192.58,192.49,4.674]
[1760938738965,5.02835005,192.52,192.49,4.674]
[1760938739369,5.02835005,192.54,192.49,4.674]
[1760938739562,5.02835005,192.54,192.5,2.69]
[1760938740467,2.15835005,192.54,192.49,4.674]
[1760938740663,2.15835005,192.54,192.47,7.3646]
[1760938740864,2.87,192.47,192.43,2.69]
[1760938741371,2.15835005,192.45,192.43,2.69]
[1760938741867,2.15835005,192.45,192.44,4.6754]
[1760938742063,2.15835005,192.48,192.44,7.3654]
[1760938742267,2.15835005,192.48,192.45,2.69]
[1760938743060,2.87,192.5,192.42,4.6759]
[1760938743363,2.15835005,192.47,192.43,2.69]
[1760938743567,2.15835005,192.47,192.44,2.69]
[1760938743770,2.15835005,192.47,192.4,2.69]
[1760938744371,2.87,192.49,192.45,7.3649]
[1760938744567,2.87,192.49,192.45,4.6749]
[1760938744767,2.15835005,192.5,192.39,2.69]
[1760938745365,2.87,192.52,192.38,46.56178857]
[1760938745366,2.15835005,192.52,192.49,2.69]
[1760938745674,2.15835005,192.55,192.45,2.69]
[1760938746074,2.87,192.59,192.52,4.6734]
[1760938746273,2.87,192.56,192.52,4.6734]
[1760938746772,2.87,192.56,192.5,2.69]
[1760938747467,2.15835005,192.54,192.48,4.6742]
[1760938747868,2.87,192.51,192.48,4.6742]
[1760938749570,2.87,192.51,192.46,7.3649]
[1760938750065,2.87,192.51,192.46,4.6749]
[1760938750465,2.87,192.51,192.46,7.3649]
[1760938750871,2.87,192.51,192.46,4.6749]
[1760938751072,2.87,192.51,192.47,2.69]
[1760938752471,2.78,192.51,192.46,4.6749]
[1760938752670,2.15835005,192.52,192.46,4.6749]
[1760938753275,4.93835005,192.52,192.46,4.6749]
[1760938753677,4.93835005,192.52,192.44,17.96]
[1760938754172,2.78,192.52,192.48,7.4344]
[1760938756173,2.78,192.55,192.48,4.6744]
[1760938756373,8.89372366,192.55,192.48,4.6744]
[1760938756572,4.93835005,192.55,192.48,4.6744]
[1760938757277,2.81,192.58,192.49,2.68]
[1760938757474,4.96835005,192.58,192.5,2.15835005]
[1760938757681,2.81,192.58,192.52,2.15835005]
[1760938757879,2.81,192.58,192.5,2.15835005]
[1760938758382,6.76471025,192.58,192.5,2.15835005]
[1760938758584,6.76471025,192.58,192.5,6.83205005]
[1760938759282,2.81,192.58,192.5,6.83205005]
[1760938759882,2.81,192.58,192.5,4.6737]
[1760938760078,2.81,192.54,192.47,2.15835005]
[1760938760579,2.81,192.54,192.45,4.83835005]
[1760938760976,2.15835005,192.55,192.45,2.15835005]
[1760938761180,2.15835005,192.55,192.38,0.90343852]
[1760938761181,2.81,192.47,192.39,2.68]
[1760938761576,2.15835005,192.46,192.38,2.15835005]
[1760938761780,2.81,192.45,192.38,2.15835005]
[1760938762479,2.81,192.45,192.38,6.83515005]
[1760938762780,2.81,192.45,192.39,2.68]
[1760938763179,2.81,192.45,192.41,2.68]
[1760938764484,2.81,192.48,192.4,9.51465005]
[1760938766084,2.81,192.48,192.42,6.83415005]
[1760938770189,2.81,192.48,192.42,4.6758]
[1760938772193,3.96729292,192.47,192.42,4.6758]
[1760938772388,2.81,192.46,192.42,7.3558]
[1760938772690,6.77798819,192.48,192.43,2.68]
[1760938772880,4.96835005,192.49,192.43,2.68]
[1760938773084,2.81,192.48,192.44,2.68]
[1760938773289,2.81,192.48,192.43,2.68]
[1760938773488,2.81,192.48,192.44,2.68]
[1760938774391,2.81,192.48,192.42,4.6758]
[1760938776086,2.15835005,192.49,192.43,7.3554]
[1760938776288,2.15835005,192.51,192.43,7.3554]
[1760938776588,3.97024438,192.5,192.43,7.3554]
[1760938776790,3.97024438,192.49,192.43,7.3554]
[1760938777084,2.15835005,192.51,192.43,7.3554]
[1760938777289,3.97024457,192.5,192.43,7.3554]
[1760938777489,3.97024457,192.49,192.44,2.68]
[1760938777690,2.15835005,192.51,192.44,2.68]
[1760938777890,3.97077062,192.5,192.44,2.68]
[1760938778187,3.97077062,192.49,192.43,4.6754]
[1760938778393,4.96835005,192.52,192.45,2.68]
[1760938778593,3.9710802,192.51,192.45,2.68]
[1760938778894,3.9710802,192.5,192.44,2.68]
[1760938779093,3.9710802,192.49,192.45,2.68]
[1760938779293,4.96835005,192.52,192.44,2.68]
[1760938779496,3.97168142,192.51,192.44,2.68]
[1760938779689,3.97168142,192.5,192.44,2.68]
[1760938779889,3.97168142,192.49,192.44,2.68]
[1760938780090,4.96835005,192.52,192.44,2.68]
[1760938780395,3.97168142,192.51,192.44,2.68]
[1760938780594,3.97168142,192.5,192.44,2.68]
[1760938780795,3.97168142,192.49,192.44,2.68]
[1760938780996,4.96835005,192.52,192.44,2.68]
[1760938781190,3.97197656,192.51,192.44,2.68]
[1760938781397,3.97197656,192.5,192.44,2.68]
[1760938781698,6.78197656,192.49,192.45,2.68]
[1760938781895,2.81,192.49,192.45,2.68]
[1760938782992,4.54245106,192.52,192.43,4.6754]
[1760938783191,4.96835005,192.49,192.41,7.3561]
[1760938783398,3.97280487,192.48,192.41,7.3561]
[1760938783596,3.97280487,192.47,192.41,7.3561]
[1760938783799,4.96835005,192.49,192.41,7.3561]
[1760938783997,3.97352651,192.48,192.41,7.3561]
[1760938784199,3.97352651,192.47,192.41,7.3561]
[1760938784397,4.96835005,192.49,192.41,7.3561]
[1760938784600,3.97373413,192.48,192.41,7.3561]
[1760938784799,3.97373413,192.47,192.41,7.3561]
[1760938785098,4.96835005,192.49,192.41,7.3561]
[1760938785397,3.97373413,192.48,192.41,7.3561]
[1760938785598,3.97373413,192.47,192.41,7.3561]
[1760938785899,4.96835005,192.49,192.41,7.3561]
[1760938786197,3.97379356,192.48,192.41,7.3561]
[1760938786395,3.97379356,192.47,192.41,7.3561]
[1760938786596,4.96835005,192.49,192.41,7.3561]
[1760938786798,2.81,192.47,192.41,7.3561]
[1760938788301,4.88835005,192.5,192.44,2.7]
[1760938788600,3.97303949,192.49,192.43,2.7]
[1760938788801,3.97303949,192.49,192.42,2.15835005]
[1760938788802,2.15835005,192.48,192.41,4.6759]
[1760938788994,2.15835005,192.46,192.41,2.7]
[1760938789391,2.73,192.45,192.41,2.7]
[1760938789892,2.15835005,192.44,192.41,2.7]
[1760938790093,4.88835005,192.44,192.4,7.3762]
[1760938790292,2.73,192.43,192.4,7.3762]
[1760938792198,2.15835005,192.44,192.4,4.6762]
[1760938792400,2.73,192.41,192.37,7.3769]
[1760938792602,2.15835005,192.42,192.38,2.7]
[1760938792900,2.73,192.43,192.39,2.7]
[1760938793099,2.73,192.46,192.4,2.7]
[1760938793300,2.73,192.44,192.4,2.7]
[1760938795302,2.73,192.44,192.39,2.7]
[1760938795798,2.73,192.44,192.4,2.7]
[1760938796205,2.73,192.44,192.41,2.7]
[1760938797203,2.73,192.44,192.34,4.27945801]
[1760938797204,2.73,192.5,192.38,2.7]
[1760938797397,3.98337274,192.49,192.38,2.7]
[1760938797600,3.98337274,192.48,192.38,2.7]
[1760938797907,3.98337274,192.47,192.43,2.7]
[1760938798204,2.73,192.45,192.41,2.7]
[1760938798406,2.73,192.47,192.36,2.7]
[1760938798606,3.98416267,192.46,192.36,2.7]
[1760938798906,2.73,192.47,192.36,2.7]
[1760938798907,6.71416267,192.45,192.36,2.7]
[1760938799101,2.73,192.45,192.36,2.7]
[1760938799705,2.73,192.43,192.36,2.7]
[1760938800708,2.73,192.41,192.36,2.7]
[1760938801008,3.37522135,192.45,192.36,2.7]
[1760938801009,2.73,192.44,192.36,2.7]
[1760938801205,2.73,192.42,192.36,2.7]
[1760938801409,3.98556056,192.41,192.36,2.7]
[1760938801610,2.73,192.4,192.36,2.7]
[1760938801805,3.37522135,192.45,192.36,2.7]
[1760938801806,7.90604987,192.45,192.36,2.7]
[1760938802005,11.39116056,192.44,192.36,2.7]
[1760938802205,3.98556056,192.43,192.36,2.7]
[1760938802401,3.98556056,192.42,192.36,2.7]
[1760938802606,3.98556056,192.41,192.36,2.7]
[1760938802808,2.73,192.4,192.36,2.7]
[1760938803006,4.6756,192.44,192.33,2.7]
[1760938803007,2.73,192.41,192.33,2.7]
[1760938803908,3.98767326,192.4,192.33,2.7]
[1760938804110,3.98767326,192.39,192.33,7.3778]
[1760938804305,2.73,192.37,192.29,2.7]
[1760938804512,2.73,192.37,192.21,21.26]
[1760938804513,2.73,192.35,192.26,2.7]
[1760938804707,3.98957515,192.34,192.26,2.7]
[1760938804901,3.98957515,192.33,192.27,2.7]
[1760938805206,3.98957515,192.33,192.22,4.28013989]
[1760938805207,7.56616784,192.39,192.29,2.7]
[1760938805411,3.98867066,192.38,192.32,2.7]
[1760938805605,2.73,192.39,192.32,2.7]
[1760938805811,3.98869146,192.38,192.32,2.7]
[1760938806107,2.73,192.39,192.32,2.7]
[1760938806309,3.98869146,192.38,192.32,2.7]
[1760938806509,2.73,192.39,192.33,4.678]
[1760938806806,2.73,192.42,192.3,2.7]
[1760938807013,3.98832327,192.41,192.3,2.7]
[1760938807212,3.98832327,192.4,192.3,2.7]
[1760938807410,2.73,192.42,192.3,2.7]
[1760938807606,2.73,192.39,192.3,2.7]
[1760938807812,3.98755323,192.38,192.3,2.7]
[1760938808011,3.98755323,192.37,192.3,2.7]
[1760938808314,2.73,192.39,192.3,2.7]
[1760938808513,3.98648323,192.38,192.31,4.6784]
[1760938808706,6.71648323,192.37,192.31,4.6784]
[1760938808907,6.71648323,192.37,192.23,34.12]
[1760938808908,3.98665337,192.36,192.25,3.37522135]
[1760938809108,2.73,192.37,192.26,2.7]
[1760938809421,3.98493661,192.36,192.26,2.7]
[1760938809715,2.73,192.37,192.24,2.7]
[1760938810014,3.37522135,192.35,192.24,2.7]
[1760938810311,6.10522135,192.35,192.28,4.679]
[1760938810611,6.10522135,192.35,192.27,2.7]
[1760938810809,2.73,192.35,192.27,2.7]
[1760938811012,2.73,192.35,192.27,7.3793]
[1760938811211,2.73,192.37,192.27,7.3793]
[1760938811512,6.10522135,192.34,192.27,7.3793]
[1760938813513,6.10522135,192.34,192.22,0.90491854]
[1760938813514,6.10522135,192.34,192.29,4.679]
[1760938813710,5.98522135,192.38,192.3,2.67]
[1760938814918,5.98522135,192.38,192.32,4.6783]
[1760938815115,3.37522135,192.34,192.23,2.67]
[1760938815514,2.61,192.36,192.28,2.67]
[1760938816015,2.61,192.36,192.29,4.679]
[1760938816217,5.98522135,192.36,192.29,4.679]
[1760938817318,5.98522135,192.36,192.28,2.67]
[1760938817519,2.62,192.32,192.28,2.67]
[1760938819317,2.62,192.32,192.26,4.6796]
[1760938819525,2.62,192.29,192.23,4.6803]
[1760938820228,3.37522135,192.3,192.26,2.77]
[1760938820526,5.99522135,192.3,192.26,2.77]
[1760938820823,2.62,192.29,192.25,7.45]
[1760938821421,3.37522135,192.3,192.22,4.6805]
[1760938821732,3.37522135,192.28,192.22,4.6805]
[1760938822122,5.99522135,192.34,192.24,7.4502]
[1760938822425,4.06251017,192.33,192.24,7.4502]
[1760938822626,5.99522135,192.34,192.24,7.4502]
[1760938822821,4.0611663,192.33,192.24,7.4502]
[1760938823017,2.62,192.32,192.24,7.4502]
[1760938823831,2.62,192.3,192.2,2.77]
[1760938825223,6.67875992,192.3,192.2,2.77]
[1760938825432,2.62,192.3,192.2,2.77]
[1760938825930,2.62,192.3,192.21,4.6809]
[1760938828031,6.67757155,192.3,192.21,4.6809]
[1760938829027,4.05757155,192.3,192.21,4.6809]
[1760938829232,2.62,192.29,192.21,4.6809]
[1760938830331,2.62,192.29,192.21,7.4509]
[1760938831435,6.67662958,192.29,192.21,7.4509]
[1760938831731,2.62,192.29,192.21,7.4509]
[1760938831932,6.67662958,192.29,192.21,7.4509]
[1760938832127,2.62,192.29,192.21,7.4509]
[1760938833036,7.298,192.34,192.22,2.77]
[1760938833226,4.05588172,192.33,192.22,2.77]
[1760938833432,4.05588172,192.32,192.22,2.77]
[1760938833632,4.05588172,192.31,192.22,2.77]
[1760938833834,7.298,192.34,192.22,2.77]
[1760938834133,7.298,192.34,192.25,2.77]
[1760938834134,4.05649577,192.33,192.25,2.77]
[1760938834335,4.05649577,192.32,192.25,2.77]
[1760938834634,4.05649577,192.33,192.25,2.77]
[1760938834833,4.05673992,192.32,192.2,2.77]
[1760938835032,6.67673992,192.31,192.2,2.77]
[1760938835233,4.05673992,192.3,192.2,2.77]
[1760938835432,4.05673992,192.29,192.2,2.77]
[1760938835633,4.05673992,192.28,192.2,2.77]
[1760938835935,4.05758856,192.27,192.21,4.6809]
[1760938836137,7.2986,192.31,192.21,4.6809]
[1760938836338,4.05768702,192.3,192.21,4.6809]
[1760938836533,4.05768702,192.29,192.21,4.6809]
[1760938836732,4.05768702,192.28,192.21,4.6809]
[1760938837031,4.05768702,192.27,192.21,4.6809]
[1760938837234,7.2986,192.31,192.21,4.6809]
[1760938837437,2.62,192.29,192.21,4.6809]
[1760938837637,4.05798575,192.28,192.21,4.6809]
[1760938837841,2.62,192.29,192.22,7.4505]
[1760938838133,2.62,192.29,192.22,2.77]
[1760938838335,4.05856915,192.28,192.22,2.77]
[1760938838537,2.62,192.29,192.22,2.77]
[1760938838731,4.05837095,192.28,192.22,2.77]
[1760938838930,2.62,192.28,192.18,10.82672135]
[1760938839338,2.62,192.26,192.18,7.4515]
[1760938840635,4.05990453,192.25,192.18,7.4515]
[1760938840830,3.37522135,192.29,192.15,32.06]
[1760938840831,8.21136416,192.29,192.15,34.83]
[1760938841029,3.37522135,192.26,192.15,34.83]
[1760938841240,2.62,192.24,192.15,34.83]
[1760938841439,6.68032144,192.23,192.15,34.83]
[1760938841743,4.06032144,192.22,192.15,34.83]
[1760938841935,12.13584281,192.27,192.16,2.77]
[1760938842240,4.06059177,192.26,192.17,3.37522135]
[1760938842443,4.06059177,192.25,192.18,2.77]
[1760938842735,4.06059177,192.24,192.18,2.77]
[1760938843038,7.2997,192.27,192.19,4.6814]
[1760938843240,4.06154313,192.26,192.19,4.6814]
[1760938843438,4.06154313,192.25,192.19,4.6814]
[1760938843631,4.06154313,192.24,192.19,4.6814]
[1760938843934,2.62,192.27,192.21,2.77]
[1760938844243,2.62,192.25,192.21,2.77]
[1760938844541,4.06287959,192.24,192.21,2.77]
[1760938844742,2.62,192.25,192.21,2.77]
[1760938844941,4.06441565,192.24,192.2,2.77]
[1760938845141,7.2992,192.28,192.2,2.77]
[1760938845341,4.06413715,192.27,192.2,2.77]
[1760938845542,4.06413715,192.26,192.2,2.77]
[1760938845745,4.06413715,192.25,192.21,2.77]
[1760938846041,4.06413715,192.24,192.21,2.77]
[1760938846238,7.2992,192.28,192.21,2.77]
[1760938846442,6.46125358,192.31,192.21,2.77]
[1760938846443,4.06513458,192.27,192.21,2.77]
[1760938846645,7.45614281,192.31,192.21,2.77]
[1760938846844,4.06454266,192.3,192.21,2.77]
[1760938847044,4.06454266,192.29,192.21,2.77]
[1760938847245,6.79454266,192.28,192.21,2.77]
[1760938847444,4.06454266,192.27,192.21,2.77]
[1760938847642,2.73,192.28,192.21,2.77]
[1760938847842,4.06588344,192.27,192.21,2.77]
[1760938848043,2.73,192.28,192.21,2.77]
[1760938848238,4.06588344,192.27,192.21,2.77]
[1760938848445,4.06588344,192.26,192.19,2.64]
[1760938848746,2.73,192.28,192.19,2.64]
[1760938848942,4.06742257,192.27,192.22,4.6805]
[1760938849136,4.06742257,192.26,192.22,7.3205]
[1760938849334,2.73,192.29,192.22,7.3205]
[1760938849540,4.06873177,192.28,192.22,7.3205]
[1760938849849,4.06873177,192.27,192.23,2.64]
[1760938850047,4.06873177,192.26,192.23,2.64]
[1760938850346,4.02656017,192.29,192.23,7.3202]
[1760938850548,2.73,192.3,192.23,2.64]
[1760938851346,12.24394281,192.34,192.25,2.64]
[1760938851645,4.02719499,192.33,192.25,2.64]
[1760938851838,4.02719499,192.32,192.25,2.64]
[1760938852038,4.02719499,192.31,192.27,2.64]
[1760938852236,4.02719499,192.3,192.27,2.64]
[1760938852448,12.24394281,192.34,192.27,2.64]
[1760938852649,4.02903366,192.33,192.27,2.64]
[1760938852947,6.75903366,192.32,192.26,4.6797]
[1760938853137,7.56614281,192.36,192.28,2.64]
[1760938853341,4.02997194,192.35,192.28,2.64]
[1760938853539,4.02997194,192.34,192.28,2.64]
[1760938853741,2.73,192.36,192.3,7.3186]
[1760938853940,6.75923424,192.35,192.31,2.64]
[1760938854144,4.02923424,192.34,192.31,2.64]
[1760938854343,2.73,192.38,192.31,2.64]
[1760938854542,4.02966163,192.37,192.31,2.64]
[1760938854748,6.75966163,192.36,192.32,2.64]
[1760938854944,4.02966163,192.35,192.32,2.64]
[1760938855144,2.73,192.36,192.32,2.64]
[1760938855345,4.02989346,192.35,192.32,2.64]
[1760938855550,2.73,192.36,192.32,2.64]